bitfinex/quotes_BTCUSD_20240727
["timestamp","ask_amount","ask_price","bid_price","bid_amount"]
[1722115730344,0.1452,69116.0,69104.0,0.01]
[1722115730547,0.0015542,69115.0,69104.0,0.01]
[1722115731805,0.0015542,69115.0,69104.0,0.013]
[1722115732426,0.02271343,69113.0,69104.0,0.01]
[1722115732774,0.0015542,69112.0,69104.0,0.014]
[1722115733089,0.0015542,69112.0,69104.0,0.01]
[1722115733733,0.0015542,69112.0,69104.0,0.014]
[1722115735177,0.0015542,69112.0,69104.0,0.01]
[1722115735755,0.2607542,69112.0,69104.0,0.014]
[1722115735951,0.115756,69111.0,69104.0,0.014]
[1722115736182,0.11576,69109.0,69104.0,0.01]
[1722115736387,0.023,69110.0,69104.0,0.01]
[1722115736573,0.0661,69109.0,69104.0,0.012]
[1722115736785,0.115765,69105.0,69104.0,0.012]
[1722115736940,0.115765,69105.0,69104.0,0.01]
[1722115736941,0.578827,69105.0,69104.0,0.01]
[1722115737142,0.701827,69105.0,69104.0,0.01]
[1722115737542,0.125,69136.0,69114.0,0.578752]
[1722115737749,0.01513749,69122.0,69114.0,0.29272979]
[1722115737946,0.125,69136.0,69115.0,0.07512979]
[1722115738128,0.125,69136.0,69122.0,0.231474]
[1722115738129,0.45077872,69132.0,69122.0,0.231474]
[1722115738332,0.125,69136.0,69114.0,0.07129405]
[1722115738526,0.125,69136.0,69120.0,0.23148]
[1722115738745,0.125,69136.0,69122.0,0.231472]
[1722115738982,0.13,69136.0,69130.0,0.115723]
[1722115739190,0.00084,69133.0,69131.0,0.115721]
[1722115739406,0.00084,69133.0,69132.0,0.11572]
[1722115740047,0.00084,69133.0,69130.0,0.115723]
[1722115740256,0.00084,69133.0,69127.0,0.231457]
[1722115740455,0.00084,69133.0,69131.0,0.115721]
[1722115740655,0.02354527,69133.0,69131.0,0.115721]
[1722115740854,0.02354527,69133.0,69129.0,0.115724]
[1722115741150,0.02354527,69133.0,69124.0,0.231467]
[1722115741359,0.0015542,69132.0,69128.0,0.115726]
[1722115741558,0.0015542,69132.0,69124.0,0.231467]
[1722115741771,0.02454527,69133.0,69125.0,0.231462]
[1722115741977,0.02454527,69133.0,69109.0,0.233517]
[1722115742176,0.02454527,69133.0,69109.0,0.231517]
[1722115742177,0.0015542,69132.0,69109.0,0.231517]
[1722115742358,0.0015542,69132.0,69117.0,0.231491]
[1722115742613,0.0025542,69132.0,69128.0,0.007]
[1722115742841,0.001,69132.0,69128.0,0.007]
[1722115743087,0.02354527,69133.0,69127.0,0.115728]
[1722115743309,0.001,69132.0,69127.0,0.115728]
[1722115743766,0.00104,69131.0,69127.0,0.115728]
[1722115744002,0.001,69132.0,69127.0,0.115728]
[1722115744376,0.0015542,69131.0,69125.0,0.231464]
[1722115744584,0.001,69132.0,69125.0,0.115731]
[1722115744585,0.0015542,69132.0,69125.0,0.115731]
[1722115745014,0.0025542,69132.0,69128.0,0.005]
[1722115745464,0.00084,69133.0,69126.0,0.11573]
[1722115745606,0.0025542,69132.0,69125.0,0.005]
[1722115746207,0.0025542,69132.0,69126.0,0.11573]
[1722115746208,0.0015542,69132.0,69126.0,0.11573]
[1722115746407,0.0015542,69132.0,69126.0,0.115729]
[1722115746649,0.0025542,69132.0,69128.0,0.005]
[1722115747453,0.02526036,69132.0,69128.0,0.005]
[1722115747887,0.0752,69130.0,69114.0,0.00649405]
[1722115748061,0.0015542,69129.0,69126.0,0.005]
[1722115748747,0.0015542,69129.0,69099.0,0.23155]
[1722115749003,0.0015542,69129.0,69128.0,0.005]
[1722115749416,0.0015542,69131.0,69113.0,0.347255]
[1722115749546,0.0015542,69131.0,69114.0,0.2315]
[1722115749752,0.0081192,69132.0,69114.0,0.115749]
[1722115749938,0.001,69129.0,69114.0,0.115749]
[1722115750133,0.0015542,69128.0,69113.0,0.115751]
[1722115750542,0.0015542,69128.0,69108.0,0.231518]
[1722115750776,0.0015542,69128.0,69113.0,0.115752]
[1722115750971,0.0015542,69128.0,69115.0,0.115748]
[1722115751179,0.0015542,69128.0,69106.0,0.0648]
[1722115751451,0.0015542,69128.0,69112.0,0.115753]
[1722115751643,0.0015542,69128.0,69111.0,0.115754]
[1722115751853,0.0015542,69128.0,69111.0,0.115755]
[1722115752063,0.02270905,69125.0,69111.0,0.115755]
[1722115752265,0.02270905,69125.0,69106.0,0.0648]
[1722115752415,0.0015542,69124.0,69114.0,0.005]
[1722115752619,0.1383,69123.0,69114.0,0.005]
[1722115752821,0.0015542,69122.0,69114.0,0.005]
[1722115753022,0.0015542,69122.0,69104.0,0.010924]
[1722115753222,0.0015542,69122.0,69111.0,0.005]
[1722115754519,0.0015542,69122.0,69104.0,0.010924]
[1722115754735,0.0025542,69122.0,69114.0,0.005]
[1722115755164,0.0015542,69122.0,69104.0,0.010924]
[1722115755638,0.0025542,69122.0,69111.0,0.005]
[1722115755962,0.0015542,69122.0,69104.0,0.010924]
[1722115756283,0.02271179,69120.0,69104.0,0.015924]
[1722115756492,0.1481,69112.0,69104.0,0.015924]
[1722115756692,0.263854,69112.0,69104.0,0.015924]
[1722115757040,0.1481,69112.0,69104.0,0.015924]
[1722115757391,0.115758,69110.0,69104.0,0.015924]
[1722115757593,0.115756,69111.0,69104.0,0.015924]
[1722115757793,0.115759,69109.0,69104.0,0.010924]
[1722115758016,0.231511,69111.0,69104.0,0.015924]
[1722115758227,0.1496542,69112.0,69104.0,0.015924]
[1722115758228,0.231516,69110.0,69104.0,0.015924]
[1722115758613,0.115761,69108.0,69104.0,0.010924]
[1722115758822,0.115761,69108.0,69104.0,0.015924]
[1722115759027,0.001,69111.0,69104.0,0.015924]
[1722115759238,0.115761,69108.0,69104.0,0.015924]
[1722115759446,0.115762,69108.0,69104.0,0.010924]
[1722115759659,0.1,69111.0,69104.0,0.012924]
[1722115759660,0.115764,69106.0,69104.0,0.012924]
[1722115760210,0.1,69111.0,69104.0,0.012924]
[1722115760666,0.115764,69106.0,69104.0,0.012924]
[1722115760890,0.618396,69105.0,69104.0,0.01028773]
[1722115761088,0.826927,69105.0,69104.0,0.00828773]
[1722115761237,0.849927,69105.0,69104.0,0.00828773]
[1722115761826,0.849927,69105.0,69068.0,0.0826]
[1722115761827,0.231556,69098.0,69068.0,0.0826]
[1722115762026,0.0652,69096.0,69067.0,0.07512979]
[1722115762592,0.0652,69096.0,69074.0,0.07512979]
[1722115762593,0.115787,69092.0,69074.0,0.07512979]
[1722115762721,0.231568,69094.0,69074.0,0.07512979]
[1722115762913,0.115789,69091.0,69074.0,0.07512979]
[1722115763132,0.0652,69096.0,69074.0,0.07512979]
[1722115763332,0.11579,69091.0,69074.0,0.07512979]
[1722115763532,0.231577,69092.0,69074.0,0.07512979]
[1722115763752,0.0652,69096.0,69067.0,0.07512979]
[1722115763753,0.0829,69087.0,69067.0,0.07512979]
[1722115764203,0.198696,69087.0,69067.0,0.07512979]
[1722115764404,0.198696,69087.0,69060.0,0.13316679]
[1722115764616,0.115797,69086.0,69060.0,0.13316679]
[1722115764850,0.231602,69084.0,69060.0,0.058037]
[1722115764972,0.115816,69075.0,69055.0,0.07512979]
[1722115765167,0.2582,69085.0,69055.0,0.07512979]
[1722115765168,0.231606,69083.0,69055.0,0.07512979]
[1722115765427,0.115813,69077.0,69055.0,0.07512979]
[1722115765605,0.231623,69078.0,69055.0,0.07512979]
[1722115765805,0.123,69082.0,69055.0,0.07512979]
[1722115765806,0.1481,69076.0,69055.0,0.07512979]
[1722115766126,0.115819,69073.0,69051.0,0.008965]
[1722115766286,0.1481,69076.0,69051.0,0.008965]
[1722115766287,0.115817,69075.0,69051.0,0.008965]
[1722115766497,0.1481,69076.0,69051.0,0.008965]
[1722115766498,0.231639,69073.0,69051.0,0.008965]
[1722115766695,0.231667,69065.0,69051.0,0.008965]
[1722115766899,0.331642,69072.0,69051.0,0.008965]
[1722115767099,0.2352,69067.0,69051.0,0.008965]
[1722115767300,0.231666,69065.0,69051.0,0.008965]
[1722115767543,0.115836,69063.0,69053.0,0.008765]
[1722115767793,0.00019999,69062.0,69053.0,0.008765]
[1722115768180,0.231667,69065.0,69053.0,0.008765]
[1722115768181,0.11584,69061.0,69053.0,0.008765]
[1722115768551,0.00019999,69059.0,69053.0,0.008765]
[1722115768962,0.00019999,69059.0,69055.0,0.07512979]
[1722115769161,0.00019999,69059.0,69058.0,0.264544]
[1722115769359,0.001,69062.0,69061.0,0.347518]
[1722115769562,0.001,69062.0,69061.0,0.954876]
[1722115769760,0.0829,69096.0,69080.0,0.115807]
[1722115769962,0.45077872,69081.0,69080.0,0.115807]
[1722115770129,0.00659555,69096.0,69082.0,0.062]
[1722115770344,0.51587872,69101.0,69083.0,0.082]
[1722115770345,0.45077872,69095.0,69083.0,0.082]
[1722115770551,0.00019999,69100.0,69083.0,0.082]
[1722115770799,0.00019999,69100.0,69078.0,0.062]
[1722115771006,0.07171959,69101.0,69078.0,0.061]
[1722115771384,0.07632978,69100.0,69078.0,0.061]
[1722115771619,0.2352,69095.0,69067.0,0.15712979]
[1722115771817,0.2352,69095.0,69067.0,0.082]
[1722115771818,0.11579,69091.0,69067.0,0.082]
[1722115772082,0.07512979,69093.0,69083.0,0.000924]
[1722115772083,0.00119999,69092.0,69083.0,0.000924]
[1722115772478,0.02272414,69086.0,69083.0,0.000924]
[1722115772917,0.00119999,69085.0,69083.0,0.000924]
[1722115773337,0.08069999,69085.0,69083.0,0.000924]
[1722115773747,0.0651,69084.0,69083.0,0.000924]
[1722115773944,0.06629999,69084.0,69083.0,0.000924]
[1722115774195,0.18210099,69084.0,69083.0,0.000924]
[1722115774603,0.06629999,69084.0,69083.0,0.000924]
[1722115774718,0.06629999,69084.0,69083.0,0.002924]
[1722115774929,0.18210099,69084.0,69083.0,0.002924]
[1722115775125,0.18210099,69084.0,69083.0,0.000924]
[1722115775494,0.18210099,69084.0,69083.0,0.003924]
[1722115776074,0.28210099,69084.0,69083.0,0.003924]
[1722115776474,0.16629999,69084.0,69083.0,0.003924]
[1722115776825,0.30482653,69084.0,69083.0,0.000924]
[1722115777026,0.32782653,69084.0,69083.0,0.000924]
[1722115777233,0.18902553,69084.0,69083.0,0.002924]
[1722115777446,0.00119999,69084.0,69083.0,0.002924]
[1722115777646,0.00671067,69085.0,69083.0,0.000924]
[1722115777853,0.00119999,69084.0,69083.0,0.000924]
[1722115778059,0.01319999,69084.0,69083.0,0.000924]
[1722115778385,0.0606,69090.0,69083.0,0.000924]
[1722115778386,0.00119999,69089.0,69083.0,0.000924]
[1722115778745,0.06741557,69090.0,69083.0,0.000924]
[1722115778933,0.001,69084.0,69083.0,0.003924]
[1722115780673,0.02272115,69084.0,69083.0,0.000924]
[1722115781118,0.02272115,69084.0,69083.0,0.002924]
[1722115781332,0.08332115,69084.0,69083.0,0.002924]
[1722115781517,0.0606,69084.0,69083.0,0.000924]
[1722115781710,0.1385,69084.0,69083.0,0.000924]
[1722115781906,0.24069999,69084.0,69083.0,0.002924]
[1722115782263,0.2385,69084.0,69083.0,0.000924]
[1722115782805,0.2395,69084.0,69083.0,0.002924]
[1722115783845,0.355301,69084.0,69083.0,0.002924]
[1722115784069,1.07430699,69084.0,69083.0,0.002924]
[1722115784417,1.08233541,69084.0,69083.0,0.000924]
[1722115784625,1.08233541,69084.0,69083.0,0.002924]
[1722115784827,1.10606356,69084.0,69083.0,0.002924]
[1722115785298,0.87346156,69084.0,69083.0,0.000924]
[1722115785531,0.87226157,69084.0,69083.0,0.000924]
[1722115785701,0.40905757,69084.0,69083.0,0.002924]
[1722115785950,0.27025657,69084.0,69083.0,0.002924]
[1722115786386,0.10902842,69084.0,69083.0,0.002924]
[1722115786557,0.1,69084.0,69083.0,0.002924]
[1722115786788,0.1,69085.0,69083.0,0.002924]
[1722115787038,0.66440851,69084.0,69083.0,0.002]
[1722115787245,0.66440851,69084.0,69053.0,0.008765]
[1722115787247,0.347553,69054.0,69053.0,0.008765]
[1722115787456,0.347553,69054.0,69041.0,0.001]
[1722115787457,0.231716,69050.0,69041.0,0.001]
[1722115787660,0.52270379,69050.0,69041.0,0.001]
[1722115787863,0.71132246,69050.0,69041.0,0.001]
[1722115788259,0.59510646,69050.0,69041.0,0.001]
[1722115788392,0.36339046,69050.0,69041.0,0.001]
[1722115788937,0.24753246,69050.0,69041.0,0.001]
[1722115789174,0.59510688,69050.0,69041.0,0.001]
[1722115789417,0.27027092,69050.0,69041.0,0.001]
[1722115789628,0.586074,69050.0,69041.0,0.001]
[1722115790053,0.1,69050.0,69041.0,0.001]
[1722115790382,0.0015542,69053.0,69041.0,0.001]
[1722115790383,0.1015542,69053.0,69041.0,0.001]
[1722115790845,0.1015542,69053.0,69049.0,0.009965]
[1722115790846,0.014,69050.0,69049.0,0.009965]
[1722115791443,0.0015542,69053.0,69049.0,0.008965]
[1722115791672,0.0015542,69053.0,69049.0,0.009965]
[1722115792013,0.351058,69050.0,69049.0,0.009965]
[1722115792217,0.351058,69050.0,69049.0,0.008965]
[1722115792218,0.2352,69050.0,69049.0,0.008965]
[1722115792416,0.2422,69050.0,69049.0,0.009965]
[1722115792823,0.26493563,69050.0,69049.0,0.009965]
[1722115793020,0.38079363,69050.0,69049.0,0.009965]
[1722115793226,0.2422,69050.0,69049.0,0.009965]
[1722115793628,0.2352,69050.0,69049.0,0.008965]
[1722115794071,0.698632,69050.0,69049.0,0.008965]
[1722115794273,0.93749,69050.0,69049.0,0.008965]
[1722115794549,0.0015542,69055.0,69049.0,0.071265]
[1722115794719,0.2352,69065.0,69049.0,0.14839479]
[1722115794937,0.45077872,69074.0,69050.0,0.00289596]
[1722115795528,0.45077872,69074.0,69052.0,0.115854]
[1722115795760,0.45077872,69074.0,69051.0,0.115855]
[1722115795963,0.2352,69076.0,69052.0,0.00289596]
[1722115796511,0.02273031,69071.0,69049.0,0.073265]
[1722115796712,0.02273031,69071.0,69050.0,0.00289593]
[1722115796968,0.2352,69076.0,69052.0,0.115853]
[1722115797361,0.1,69075.0,69053.0,0.11874793]
[1722115797565,0.1,69075.0,69053.0,0.00289593]
[1722115798146,0.001,69074.0,69054.0,0.11585]
[1722115798351,0.001,69074.0,69055.0,0.00289593]
[1722115798578,0.001,69074.0,69050.0,0.237713]
[1722115798722,0.1,69075.0,69056.0,0.115847]
[1722115798925,0.101,69075.0,69056.0,0.115847]
[1722115799126,0.101,69075.0,69054.0,0.231702]
[1722115799325,0.1,69075.0,69054.0,0.231702]
[1722115799567,0.00085334,69074.0,69055.0,0.231696]
[1722115799827,0.02272897,69070.0,69056.0,0.115847]
[1722115800033,0.02272897,69070.0,69064.0,0.1428]
[1722115800241,0.45077872,69095.0,69077.0,0.231624]
[1722115800447,0.45077872,69095.0,69071.0,0.00289483]
[1722115800648,0.45077872,69095.0,69070.0,0.21792979]
[1722115800649,0.1,69094.0,69070.0,0.21792979]
[1722115800818,0.001,69074.0,69073.0,0.115819]
[1722115801125,0.001,69074.0,69073.0,0.579095]
[1722115801527,0.1,69094.0,69073.0,0.616076]
[1722115801663,0.45077872,69088.0,69073.0,0.1528]
[1722115801865,0.02279858,69091.0,69077.0,0.005]
[1722115802145,0.01613749,69091.0,69090.0,0.347371]
[1722115802349,0.01613749,69091.0,69090.0,0.731752]
[1722115802350,0.01513749,69091.0,69090.0,0.731752]
[1722115802553,0.45077872,69113.0,69090.0,0.04056216]
[1722115802763,0.45077872,69113.0,69086.0,0.374395]
[1722115802764,0.001,69091.0,69087.0,0.115795]
[1722115803099,0.001,69091.0,69086.0,0.258597]
[1722115803279,0.001,69091.0,69087.0,0.115795]
[1722115803481,0.001,69091.0,69086.0,0.1428]
[1722115803482,0.02371847,69091.0,69086.0,0.1428]
[1722115803706,0.02371847,69091.0,69087.0,0.115795]
[1722115803911,0.02371847,69091.0,69090.0,0.63760079]
[1722115804231,0.02271847,69091.0,69090.0,0.0623]
[1722115804382,0.02271847,69091.0,69090.0,0.18909]
[1722115804612,0.02271847,69091.0,69090.0,0.805052]
[1722115804613,0.02371847,69091.0,69090.0,0.805052]
[1722115804808,0.02371847,69091.0,69090.0,0.18909]
[1722115805160,0.02371847,69091.0,69086.0,0.08713635]
[1722115805161,0.02271847,69091.0,69086.0,0.00663635]
[1722115805307,0.02371847,69091.0,69090.0,0.011]
[1722115805708,0.02371847,69091.0,69077.0,0.0805]
[1722115805709,0.0652,69100.0,69077.0,0.0805]
[1722115805946,0.1173302,69099.0,69077.0,0.0805]
[1722115806089,0.001,69091.0,69090.0,0.011]
[1722115807544,0.0015542,69099.0,69077.0,0.0805]
[1722115807848,0.00815324,69099.0,69077.0,0.0815]
[1722115808096,0.0015542,69099.0,69077.0,0.0815]
[1722115808301,0.07512979,69096.0,69072.0,0.0623]
[1722115808520,0.2352,69096.0,69073.0,0.00276958]
[1722115808708,0.2352,69096.0,69090.0,0.01]
[1722115808709,0.001,69091.0,69090.0,0.01]
[1722115808836,0.02372326,69091.0,69090.0,0.01]
[1722115809033,0.02372326,69091.0,69072.0,0.0623]
[1722115809034,0.02272326,69091.0,69072.0,0.0623]
[1722115809274,0.0015542,69090.0,69072.0,0.0623]
[1722115809629,0.0015542,69090.0,69072.0,0.0683]
[1722115810583,0.0015542,69095.0,69072.0,0.0683]
[1722115810803,0.1173372,69095.0,69072.0,0.0623]
[1722115811006,0.001,69091.0,69072.0,0.0723]
[1722115811235,0.0015542,69090.0,69072.0,0.0723]
[1722115811542,0.0015542,69090.0,69072.0,0.0623]
[1722115811685,0.0015542,69094.0,69072.0,0.0623]
[1722115811889,0.1183362,69095.0,69072.0,0.0713]
[1722115812179,0.0025542,69095.0,69072.0,0.0713]
[1722115812525,0.0025542,69095.0,69076.0,0.115814]
[1722115812526,0.0015542,69095.0,69076.0,0.115814]
[1722115812753,0.1,69099.0,69072.0,0.07419481]
[1722115812916,0.001,69090.0,69075.0,0.115815]
[1722115813121,0.001,69090.0,69072.0,0.0713]
[1722115813342,0.001,69090.0,69078.0,0.115811]
[1722115813343,0.0015542,69089.0,69078.0,0.115811]
[1722115813547,0.0015542,69089.0,69077.0,0.231624]
[1722115813708,0.02272231,69086.0,69076.0,0.115813]
[1722115814088,0.02272231,69086.0,69077.0,0.23451883]
[1722115814251,0.02272231,69086.0,69077.0,0.00289483]
[1722115814562,0.0015542,69085.0,69078.0,0.11581]
[1722115814780,0.1,69099.0,69076.0,0.115813]
[1722115814781,0.0015542,69094.0,69076.0,0.115813]
[1722115815000,0.0015542,69097.0,69077.0,0.115812]
[1722115815191,0.0015542,69097.0,69072.0,0.0623]
[1722115815192,0.001,69086.0,69076.0,0.01]
[1722115815402,0.0015542,69085.0,69076.0,0.01]
[1722115815603,0.0015542,69097.0,69075.0,0.115815]
[1722115815835,0.0015542,69097.0,69076.0,0.115814]
[1722115815954,0.0015542,69084.0,69078.0,0.01]
[1722115817379,0.0015542,69089.0,69065.0,0.1459]
[1722115817605,0.02272339,69083.0,69075.0,0.01]
[1722115817953,0.0015542,69082.0,69075.0,0.01]
[1722115818126,0.0015542,69082.0,69065.0,0.15267116]
[1722115818304,0.0015542,69082.0,69065.0,0.26850316]
[1722115818506,0.0015542,69082.0,69078.0,0.01]
[1722115818875,0.0015542,69083.0,69065.0,0.15267116]
[1722115819069,0.0015542,69083.0,69066.0,0.00289536]
[1722115819340,0.10662002,69090.0,69066.0,0.00289536]
[1722115819341,0.001,69082.0,69075.0,0.01]
[1722115819528,0.0015542,69081.0,69075.0,0.01]
[1722115821171,0.1438,69080.0,69057.0,0.2182]
[1722115821371,0.0015542,69079.0,69064.0,0.1528]
[1722115821600,0.0015542,69079.0,69066.0,0.1528]
[1722115821730,0.0015542,69082.0,69072.0,0.11582]
[1722115821942,0.0015542,69082.0,69067.0,0.00289497]
[1722115822139,0.1,69088.0,69056.0,0.00665879]
[1722115822140,0.0015542,69087.0,69063.0,0.1528]
[1722115822344,0.001,69081.0,69075.0,0.007]
[1722115822545,0.0015542,69080.0,69075.0,0.007]
[1722115822807,0.0015542,69080.0,69067.0,0.347485]
[1722115822941,0.0015542,69087.0,69065.0,0.231665]
[1722115823140,0.10662002,69090.0,69067.0,0.122829]
[1722115823141,0.001,69082.0,69067.0,0.122829]
[1722115823439,0.001,69082.0,69067.0,0.007]
[1722115823669,0.0015542,69081.0,69067.0,0.007]
[1722115824923,0.0015542,69081.0,69063.0,0.00670361]
[1722115825123,0.00676114,69084.0,69065.0,0.115832]
[1722115825387,0.0015542,69089.0,69061.0,0.231676]
[1722115825388,0.02272606,69078.0,69075.0,0.007]
[1722115825592,0.0015542,69077.0,69075.0,0.007]
[1722115825767,0.0015542,69077.0,69064.0,0.115834]
[1722115826000,0.0015542,69077.0,69064.0,0.115833]
[1722115826169,0.0015542,69077.0,69066.0,0.115831]
[1722115826328,0.0015542,69077.0,69063.0,0.122835]
[1722115826536,0.0015542,69077.0,69064.0,0.115834]
[1722115826731,0.0015542,69089.0,69064.0,0.115834]
[1722115826917,0.001,69077.0,69064.0,0.122833]
[1722115827117,0.0015542,69076.0,69064.0,0.122833]
[1722115827552,0.0015542,69076.0,69064.0,0.007]
[1722115828084,0.0015542,69076.0,69064.0,0.122833]
[1722115828834,0.0015542,69076.0,69064.0,0.115833]
[1722115829031,0.55077872,69090.0,69064.0,0.115833]
[1722115829032,0.1881,69087.0,69064.0,0.123833]
[1722115829253,0.01058113,69086.0,69064.0,0.123833]
[1722115829456,0.01058113,69086.0,69064.0,0.008]
[1722115829457,0.1881,69071.0,69064.0,0.008]
[1722115829655,0.1441,69069.0,69064.0,0.008]
[1722115829856,0.1441,69069.0,69051.0,0.000924]
[1722115830055,0.1881,69063.0,69051.0,0.000924]
[1722115830532,0.0015542,69062.0,69051.0,0.000924]
[1722115832186,0.0015542,69062.0,69051.0,0.006924]
[1722115832762,0.0015542,69062.0,69051.0,0.000924]
[1722115832981,0.0025542,69062.0,69051.0,0.005924]
[1722115833978,0.02273193,69060.0,69051.0,0.005924]
[1722115834126,0.0015542,69059.0,69051.0,0.005924]
[1722115834852,0.0015542,69061.0,69051.0,0.000924]
[1722115835072,0.001,69060.0,69051.0,0.006924]
[1722115835455,0.0015542,69059.0,69051.0,0.006924]
[1722115835658,0.0015542,69059.0,69051.0,0.000924]
[1722115835838,0.001,69059.0,69051.0,0.006924]
[1722115837107,0.347563,69052.0,69051.0,0.006924]
[1722115837241,0.5883026,69052.0,69051.0,0.006924]
[1722115837586,1.0838116,69052.0,69051.0,0.000924]
[1722115837784,1.0838116,69052.0,69051.0,0.005924]
[1722115837985,1.29703565,69052.0,69051.0,0.005924]
[1722115838140,1.48851891,69052.0,69051.0,0.005924]
[1722115838343,1.48851891,69052.0,69051.0,0.000924]
[1722115838563,1.48851891,69052.0,69042.0,0.008965]
[1722115838564,0.811006,69050.0,69042.0,0.008965]
[1722115838899,1.35366806,69050.0,69042.0,0.008965]
[1722115839084,1.35367121,69050.0,69042.0,0.008965]
[1722115839305,1.187186,69043.0,69042.0,0.008965]
[1722115839457,1.31921975,69043.0,69042.0,0.008965]
[1722115839660,1.31922019,69043.0,69042.0,0.008965]
[1722115839898,1.45865519,69043.0,69042.0,0.008965]
[1722115841295,1.45865521,69043.0,69042.0,0.008965]
[1722115841832,1.46465521,69043.0,69042.0,0.008965]
[1722115842032,1.48739772,69043.0,69042.0,0.008965]
[1722115842234,1.48739775,69043.0,69042.0,0.008965]
[1722115842464,1.13075551,69043.0,69041.0,0.001]
[1722115842656,1.13075551,69043.0,69034.0,0.008965]
[1722115842657,0.0658,69039.0,69034.0,0.008965]
[1722115842825,0.231786,69029.0,69001.0,0.07910749]
[1722115843026,0.07512979,69037.0,69001.0,0.07910749]
[1722115843027,0.583015,69022.0,69001.0,0.07910749]
[1722115843308,0.914825,69022.0,69001.0,0.07910749]
[1722115843480,0.937825,69022.0,69001.0,0.0039777]
[1722115843678,0.706015,69022.0,69001.0,0.0039777]
[1722115843879,0.937825,69022.0,69001.0,0.0039777]
[1722115844103,0.706015,69022.0,69001.0,0.0039777]
[1722115844297,0.937825,69022.0,69001.0,0.0039777]
[1722115844704,1.169635,69022.0,69001.0,0.0039777]
[1722115844911,0.347755,69014.0,69001.0,0.0039777]
[1722115845116,0.702592,69014.0,69001.0,0.0039777]
[1722115845545,0.470755,69014.0,69001.0,0.0039777]
[1722115845714,0.238918,69014.0,69001.0,0.0039777]
[1722115845916,0.470755,69014.0,69001.0,0.0039777]
[1722115846153,0.1,69014.0,69001.0,0.07910749]
[1722115846356,0.02274883,69014.0,69001.0,0.07910749]
[1722115846763,0.215906,69021.0,69001.0,0.07910749]
[1722115846921,0.1,69021.0,69001.0,0.07910749]
[1722115847121,0.215906,69021.0,69001.0,0.07910749]
[1722115847348,0.1,69021.0,69001.0,0.07910749]
[1722115847553,0.215906,69021.0,69013.0,0.008765]
[1722115847954,0.1,69021.0,69013.0,0.008765]
[1722115848319,0.579592,69014.0,69013.0,0.008765]
[1722115848431,0.843392,69014.0,69013.0,0.008765]
[1722115848636,0.843392,69014.0,69001.0,0.0039777]
[1722115848637,0.579632,69009.0,69001.0,0.0039777]
[1722115848840,1.169785,69009.0,69001.0,0.0039777]
[1722115849084,0.579667,69005.0,69004.0,0.00458623]
[1722115849398,0.579692,69002.0,69001.0,0.0039777]
[1722115849575,0.911569,69002.0,69001.0,0.0039777]
[1722115849776,1.0498059,69002.0,69001.0,0.0039777]
[1722115849937,0.81158,69001.0,69000.0,1.5141618]
[1722115850137,1.07968,69001.0,69000.0,1.39495653]
[1722115850366,1.31156,69001.0,69000.0,1.33001308]
[1722115850542,1.20743645,69001.0,69000.0,1.31501308]
[1722115851439,1.22143645,69001.0,69000.0,0.19346269]
[1722115851644,1.22143645,69001.0,69000.0,0.16246269]
[1722115851905,1.20743645,69001.0,69000.0,0.16246269]
[1722115852072,1.19205,68995.0,68981.0,0.001]
[1722115852281,0.579775,68992.0,68981.0,0.001]
[1722115852478,0.679775,68992.0,68981.0,0.001]
[1722115852685,0.3353,68992.0,68981.0,0.001]
[1722115852901,0.35805901,68992.0,68981.0,0.001]
[1722115853865,0.35805901,68992.0,68982.0,0.115971]
[1722115853866,0.02275901,68992.0,68982.0,0.115971]
[1722115853976,0.02275901,68992.0,68982.0,0.231943]
[1722115854196,0.02275901,68992.0,68982.0,0.231941]
[1722115854391,0.02275901,68992.0,68991.0,0.124922]
[1722115854621,0.02275901,68992.0,68991.0,0.266522]
[1722115855136,0.02275901,68992.0,68991.0,0.267522]
[1722115855365,0.02375901,68992.0,68991.0,0.151565]
[1722115855569,0.22375901,68992.0,68991.0,0.151565]
[1722115855814,0.22275901,68992.0,68991.0,0.382479]
[1722115856025,0.22375901,68992.0,68991.0,0.009965]
[1722115857205,0.22375901,68992.0,68991.0,0.008965]
[1722115857206,0.22275901,68992.0,68991.0,0.008965]
[1722115857553,0.22375901,68992.0,68991.0,0.009965]
[1722115858117,0.22375901,68992.0,68991.0,0.008965]
[1722115858118,0.22275901,68992.0,68991.0,0.008965]
[1722115858521,0.57162401,68992.0,68991.0,0.009965]
[1722115858748,0.67162401,68992.0,68991.0,0.009965]
[1722115858898,1.07063401,68992.0,68991.0,0.008965]
[1722115859100,0.97664581,68992.0,68991.0,0.008965]
[1722115859444,0.98456501,68992.0,68991.0,0.009965]
[1722115859643,1.44838501,68992.0,68991.0,0.009965]
[1722115860262,0.33067821,68992.0,68991.0,0.009965]
[1722115860480,0.22275901,68992.0,68991.0,0.496936]
[1722115860685,0.2,68992.0,68991.0,0.88165]
[1722115860902,0.201,68992.0,68991.0,1.114564]
[1722115861342,0.201,68992.0,68991.0,1.113564]
[1722115861343,0.2,68992.0,68991.0,1.113564]
[1722115861571,0.2,68992.0,68991.0,1.348864]
[1722115861572,0.1334,68992.0,68991.0,1.348864]
[1722115861791,0.01513749,69026.0,69016.0,0.0646]
[1722115862018,0.01513749,69026.0,69017.0,0.115913]
[1722115862220,0.01513749,69026.0,69016.0,0.0646]
[1722115863586,0.01513749,69026.0,69008.0,0.2387006]
[1722115863587,0.01513749,69026.0,69008.0,0.0068466]
[1722115863796,0.01513749,69026.0,69009.0,0.115926]
[1722115864039,0.01513749,69026.0,69007.0,0.180529]
[1722115864215,0.01513749,69026.0,69007.0,0.0646]
[1722115864421,0.01513749,69026.0,69016.0,0.014]
[1722115865137,0.0015542,69025.0,69007.0,0.0646]
[1722115865342,0.01513749,69026.0,69007.0,0.0646]